Cogmind - Beta 15 @@@ ROGUE MODE // 2025.06.27 @ 02:00:45 Player: 7604 Result: Self-destructed Performance ------------- Evolutions (1) 500 Regions Visited (3) 600 Robots Destroyed (26) 130 Value Destroyed (538) 538 Prototype IDs (0) 0 Alien Tech Used (0) 0 Bonus (60) 60 TOTAL SCORE: 1828 Bonus ------- Follower Combat Kills 60 Cogmind --------- Core Integrity 400/400 Matter 296/300 Energy 265/265 System Corruption 0% Temperature Cool (0) Movement Treading (160) Location -9/Materials Parts ------- > --- POWER (1) -------- Improved Ion Engine > --- PROPULSION (3) --- Light Treads Light Treads > --- UTILITY (3) ------ Large Storage Unit Seismic Detector > --- WEAPON (2) ------- Light Cannon Light Cannon > --- INVENTORY (15) --- Ion Engine Ion Engine Ion Engine Light Treads Improved Heat Sink Seismic Detector Light Armor Plating Bomb Drone Bay Beam Cannon Assault Rifle Heavy Assault Rifle Light Cannon Grenade Launcher Grenade Launcher Peak State ------------ > --- POWER ------------ Improved Ion Engine > --- PROPULSION ------- Light Treads Light Treads > --- UTILITY ---------- Large Storage Unit Seismic Detector > --- WEAPON ----------- Light Cannon Light Cannon > --- INVENTORY -------- Ion Engine Ion Engine Ion Engine Light Treads Improved Heat Sink Seismic Detector Light Armor Plating Bomb Drone Bay Beam Cannon Assault Rifle Heavy Assault Rifle Light Cannon Grenade Launcher Grenade Launcher [Rating: 11] Favorites ----------- Power Ion Engine Engine Ion Engine Propulsion Light Treads Treads Light Treads Leg Aluminum Leg Utility Large Storage Unit Device Seismic Detector Storage Large Storage Unit Protection Light Armor Plating Weapon Light Cannon Ballistic Gun Assault Rifle Ballistic Cannon Light Cannon Launcher Grenade Launcher Build | -11 -10 -10 -9 ------- Run | Yrd Mat Min Mat Slots Evolved 2 | . . . 2 Power . | . . . . Propulsion 1 | . . . 1 Utility 1 | . . . 1 Weapon . | . . . . Parts Attached 19 | 1 11 7 . Power 2 | . 1 1 . Engine 2 | . 1 1 . Core . | . . . . Reactor . | . . . . Propulsion 4 | . 2 2 . Treads 4 | . 2 2 . Leg . | . . . . Wheel . | . . . . Hover . | . . . . Flight . | . . . . Utility 6 | 1 3 2 . Device 2 | 1 . 1 . Storage 2 | . 2 . . Processor . | . . . . Hackware . | . . . . Protection 2 | . 1 1 . Artifact . | . . . . Weapon 7 | . 5 2 . Energy Gun . | . . . . Energy Cannon . | . . . . Ballistic Gun . | . . . . Ballistic Cannon 5 | . 4 1 . Launcher 2 | . 1 1 . Special Weapon . | . . . . Impact Weapon . | . . . . Slashing Weapon . | . . . . Piercing Weapon . | . . . . Special Melee Weapon . | . . . . Unidentified Prototypes . | . . . . Parts Lost 3 | . . 3 . Power . | . . . . Propulsion 2 | . . 2 . Utility 1 | . . 1 . Weapon . | . . . . Highest Loss Streak 2 | . . 2 . To Critical Strikes . | . . . . Average Backups 11 | 6 10 13 . Power 2 | 1 1 2 . Propulsion 1 | 4 . 1 . Utility 2 | . 1 3 . Weapon 6 | 1 6 6 . Tool/Special . | . . . . Unused Backups 17 | . 6 2 9 Power 2 | . . . 2 Propulsion 6 | . 5 . 1 Utility 3 | . 1 . 2 Weapon 6 | . . 2 4 Tool/Special . | . . . . Average Slot Usage (%) 99 | . 98 99 . Engine 13 | . 13 14 . Treads 27 | . 27 27 . Device 10 | . 8 11 . Storage 14 | . 14 14 . Protection 3 | . 4 2 . Ballistic Cannon 26 | . 25 27 . Peak Build Rating 11 | 7 8 11 . Average Rating 8 | 6 7 9 . On Entrance 8 | 6 7 8 11 Naked Turns . | . . . . Heaviest Build 34 | 15 34 34 . Greatest Support 40 | 20 40 40 . Greatest Overweight (x) 1 | . . 1 . Average Overweight (x) . | . . . . Largest Inventory Capacity 15 | 8 15 15 . Average Capacity 13 | 8 12 15 . Most Carried 15 | 6 13 15 . Average Carried 11 | 6 10 13 . Final Capacity 15 | 8 15 15 15 Final Carried 15 | 6 12 15 15 Class Distribution -------------------- 100% | Mutant Dominant Class ---------------- Mutant | -10/Materials Mutant | -10/Mines Mutant | -9/Materials Resources | -11 -10 -10 -9 ----------- Run | Yrd Mat Min Mat Matter Collected 1100 | 222 355 523 . Remotely . | . . . . Salvage Created 537 | 66 278 193 . Parts 37 | 5 22 10 . Haulers Intercepted 1 | . 1 . . Recyclers Shooed . | . . . . Parts Field Recycled . | . . . . Retrieved Matter . | . . . . Parts Self-Destructed . | . . . . Prevented . | . . . . Kills | -11 -10 -10 -9 ------- Run | Yrd Mat Min Mat Combat Hostiles Destroyed 23 | . 12 11 . Cannons 14 | . 6 8 . AOE 9 | . 6 3 . Classes Destroyed 8 | 2 4 2 . Worker 1 | . . 1 . Tunneler 1 | 1 . . . Hauler 1 | . 1 . . Recycler 1 | 1 . . . Watcher 2 | . 2 . . Swarmer 9 | . 6 3 . Grunt 11 | . 6 5 . Assembled 3 | . . 3 . Best Kill Streak 4 | 2 4 4 . Combat Bots Only 4 | . 3 4 . Max Kills in Single Turn 3 | 1 3 3 . Gunslinging . | . . . . Exploded 3 | . 3 3 . Melee . | . . . . Uniques/NPCs Destroyed . | . . . . Combat | -11 -10 -10 -9 -------- Run | Yrd Mat Min Mat Hostile Shots Fired 68 | . 29 39 . Missed 25 | . 12 13 . Hits 43 | . 17 26 . Melee 1 | . . 1 . Projectile 42 | . 17 25 . Part Disruptions 1 | . . 1 . Damage Taken 641 | . 192 449 . Core 65 | . 27 38 . Absorbed by Shields . | . . . . Core Remaining (%) 87 | 100 . 74 . Volleys Fired 66 | 2 31 33 . Largest 2 | 2 2 2 . Hottest 60 | 40 60 60 . Shots Fired 120 | 4 58 58 . Gun 4 | 4 . . . Cannon 108 | . 54 54 . Launcher 8 | . 4 4 . Special . | . . . . Kinetic 112 | 4 54 54 . Thermal . | . . . . Explosive 8 | . 4 4 . Electromagnetic . | . . . . Robot Hit Streak 14 | 3 14 4 . Robot Miss Streak 4 | . 2 4 . Penetration Max . | . . . . Secondary Targets . | . . . . Shots Hit Robots 68 | 3 38 27 . Core Hits 36 | 3 16 17 . Critical Kills . | . . . . Critical Parts Destroyed . | . . . . Critical Strikes 4 | . 4 . . Blast 4 | . 4 . . Melee Attacks . | . . . . Impact . | . . . . Slashing . | . . . . Piercing . | . . . . Sneak Attacks . | . . . . Combat Hostiles . | . . . . Follow-up Attacks . | . . . . Damage Inflicted 1527 | 39 875 613 . Guns 39 | 39 . . . Cannons 1097 | . 633 464 . Explosions 383 | . 242 141 . Melee . | . . . . Ramming 8 | . . 8 . Kinetic 1136 | 39 633 464 . Thermal . | . . . . Explosive 383 | . 242 141 . Electromagnetic . | . . . . Impact . | . . . . Slashing . | . . . . Piercing . | . . . . Highest Corruption . | . . . . Average Corruption . | . . . . Corruption Purged . | . . . . Corruption Blocked . | . . . . Overload Shots . | . . . . Overflow Damage 28 | . . 28 . Projectiles . | . . . . Explosions 28 | . . 28 . Melee . | . . . . Knockbacks 9 | . 4 5 . Impact . | . . . . Kinetic 9 | . 4 5 . Secondary . | . . . . Self-Inflicted Damage 160 | . 19 141 . Shots 5 | . 1 4 . Rammed 1 | . . 1 . Targets Rammed 1 | . . 1 . Kicked . | . . . . Crushed . | . . . . Highest Temperature 111 | . 84 111 . Average Temperature 36 | . 34 37 . Received Heat Transfer 294 | . 57 237 . Siege Activations . | . . . . Martial Activations . | . . . . Shielding Activations . | . . . . Robots Disrupted . | . . . . Combat Hostiles . | . . . . Robots Corrupted . | . . . . Combat Hostiles . | . . . . Parts Fried . | . . . . Impact Corruptions . | . . . . Robots Melted . | . . . . Combat Hostiles . | . . . . Parts Melted . | . . . . Heat Transferred . | . . . . Parts Sabotaged . | . . . . Parts Stolen . | . . . . Parts Stripped . | . . . . Power Chain Reactions . | . . . . Alert | -11 -10 -10 -9 ------- Run | Yrd Mat Min Mat Maximum Alert Level . | . . . . Low Security (%) 100 | 100 100 100 . Level 1 . | . . . . Level 2 . | . . . . Level 3 . | . . . . Level 4 . | . . . . Level 5 . | . . . . High Security . | . . . . Max Security . | . . . . Peak Influence 107 | 10 107 84 . Initial 11 | . . . 11 Average 31 | 5 47 15 . Influence Increases 718 | 10 422 286 . Destroy 0b10 Robot/C 440 | . 240 200 . Destroy 0b10 Robot/NC 30 | 10 15 5 . Destroy Leader 86 | . 56 30 . Allied During Kill 8 | . . 8 . Successful Hack 32 | . 32 . . Select Force Hacks 30 | . 30 . . Destroy Structure 62 | . 34 28 . Lose Combat Pursuer 30 | . 15 15 . Influence Decreases 707 | 10 422 256 19 Entered New Map 19 | . . . 19 Time Decay 658 | 10 422 226 . Lost Part 30 | . . 30 . Squads Dispatched 2 | . 2 . . Investigation 2 | . 2 . . Extermination . | . . . . Reinforcement . | . . . . Assault . | . . . . Garrison . | . . . . Intercept . | . . . . Searches Triggered . | . . . . Construction Impeded . | . . . . Haulers Reinforced . | . . . . Active Scanning Responses . | . . . . Cargo Convoy Interrupts . | . . . . Stealth | -11 -10 -10 -9 --------- Run | Yrd Mat Min Mat Distress Signals 1 | . 1 . . Communications Jammed . | . . . . Distress Signals . | . . . . Times Spotted 29 | . 16 13 . Peak Tracking Total 4 | . 4 3 . Tactical Retreats 4 | . 1 3 . Traps | -11 -10 -10 -9 ------- Run | Yrd Mat Min Mat Traps Triggered 3 | . 3 . . Indirectly . | . . . . Trap Hack Attempts . | . . . . Triggered . | . . . . Disarmed . | . . . . Reprogrammed . | . . . . Reused . | . . . . Traps Extracted . | . . . . Installed . | . . . . Triggered . | . . . . Machines | -11 -10 -10 -9 ---------- Run | Yrd Mat Min Mat Machines Disabled . | . . . . Max in Single Turn . | . . . . Machines Repaired . | . . . . Machines Dismantled . | . . . . Machines Sabotaged . | . . . . Overloaded Fab Kills . | . . . . Hacking | -11 -10 -10 -9 --------- Run | Yrd Mat Min Mat Machines Accessed 9 | . 8 1 . Terminals 7 | . 7 . . Fabricators . | . . . . Repair Stations . | . . . . Recycling Units 1 | . 1 . . Scanalyzers . | . . . . Garrison Access . | . . . . Total Hacks 24 | . 23 1 . Successful 14 | . 13 1 . Failed 9 | . 9 . . Catastrophic . | . . . . Database Lockouts 1 | . 1 . . Manual 21 | . 21 . . Terminals 21 | . 21 . . Fabricators . | . . . . Repair Stations . | . . . . Recycling Units 2 | . 2 . . Scanalyzers . | . . . . Garrison Access . | . . . . Terminal Hacks 6 | . 5 1 . Robot Schematic 1 | . 1 . . Robot Analysis 2 | . 2 . . Open Door 1 | . . 1 . Hauler Manifests 1 | . 1 . . Zone Layout 1 | . 1 . . Fabricator Hacks . | . . . . Repair Station Hacks . | . . . . Recycling Unit Hacks . | . . . . Scanalyzer . | . . . . Garrison Access Hacks . | . . . . Unauthorized Hacks 8 | . 8 . . Terminals 7 | . 7 . . Botnet 1 | . 1 . . Operators 1 | . 1 . . Skim 5 | . 5 . . Fabricators . | . . . . Repair Stations . | . . . . Recycling Units 1 | . 1 . . Tunnel 1 | . 1 . . Scanalyzers . | . . . . Garrison Access . | . . . . Data Cores Recovered . | . . . . Used . | . . . . Hacking Detections 8 | . 8 . . Full Trace Events . | . . . . Feedback Events . | . . . . Feedback Blocked . | . . . . Robot Schematics Acquired 1 | . 1 . . Robots Built . | . . . . Authchips . | . . . . Time . | . . . . Total Robot Build Rating . | . . . . Part Schematics Acquired . | . . . . Parts Built . | . . . . Authchips . | . . . . Time . | . . . . Total Part Build Rating . | . . . . Parts Repaired . | . . . . Time . | . . . . Parts Recycled . | . . . . Recycled Matter . | . . . . Retrieved Matter . | . . . . Retrieved Components . | . . . . Parts Scanalyzed . | . . . . Part Schematics Acquired . | . . . . Parts Damaged . | . . . . Bothacking | -11 -10 -10 -9 ------------ Run | Yrd Mat Min Mat Used RIF Installer . | . . . . Robots Hacked . | . . . . Non-combat . | . . . . Combat . | . . . . Robot Hacks Applied . | . . . . Relay Couplers Released . | . . . . Fabnet Peak Effective % . | . . . . Robots Rewired . | . . . . Allies Hacked . | . . . . Hacks Repelled . | . . . . Allies | -11 -10 -10 -9 -------- Run | Yrd Mat Min Mat Total Allies 3 | . . 3 . Largest Group 3 | . . 3 . Highest-Rated Group 40 | . . 40 . Highest-Rated Ally 16 | . . 16 . Total Orders . | . . . . Ally Attacks 15 | . . 15 . Total Damage 126 | . . 126 . Kills 2 | . . 2 . Allies Corrupted . | . . . . Allies Melted . | . . . . Intel | -11 -10 -10 -9 ------- Run | Yrd Mat Min Mat Active Infowar (turns) 1735 | 10 748 977 . Seismic 1735 | 10 748 977 . Robot Analysis Total 2 | . 2 . . Derelict Logs Recovered 1 | . . 1 . Drone Launches . | . . . . Drone Recoveries . | . . . . Exploration | -11 -10 -10 -9 ------------- Run | Yrd Mat Min Mat Turns Passed 2430 | 24 1202 1204 . Spaces Moved 1288 | 14 649 625 . Core . | . . . . Treads 1268 | . 643 625 . Legs 20 | 14 6 . . Wheels . | . . . . Hover . | . . . . Flight . | . . . . Fastest Speed 120 | 120 120 160 . Average Speed 159 | 120 159 160 . Slowest Speed 240 | 120 160 240 . Overloaded Moves . | . . . . Propulsion Burnouts . | . . . . Robots Hopped . | . . . . Potential Cave-ins . | . . . . Cave-ins Triggered . | . . . . Exploration Rate (%) 50 | 3 97 98 2 Regions Visited 3 Branch Regions 1 Pre-discovered Areas 1 | . 1 . . Known Exits Taken 1 | . . 1 . Unknown Exits Taken 2 | 1 1 . . Scrap Searched 2 | . . 2 . Spaces Dug . | . . . . Terrain Destroyed 59 | . 30 29 . Melee . | . . . . Projectile . | . . . . AOE 59 | . 30 29 . Terrain Rammed . | . . . . Walls Destroyed . | . . . . Machines Disabled . | . . . . Actions | -11 -10 -10 -9 --------- Run | Yrd Mat Min Mat Total 1532 | 16 752 764 . Wait 110 | . 34 76 . Move 1285 | 13 648 624 . Hop . | . . . . Pick Up 18 | . 10 8 . Fast Attach 5 | 1 4 . . Attach 5 | . 2 3 . Detach 1 | . 1 . . Swap 30 | . 16 14 . Drop 11 | . 6 5 . Fire 66 | 2 31 33 . Melee . | . . . . Ram . | . . . . Kick . | . . . . Crush 1 | . . 1 . Escape Stasis . | . . . . Rewire . | . . . . Trap . | . . . . Miscellaneous . | . . . . Route ------- -11/Scrapyard -10/Materials (discovered 6 exits: *Mat x3 / *Min x2 / *Sub) -10/Mines (discovered 2 exits: *Mat x2) -9/Materials History --------- Turn | Location | Event 1 | -11/Scrapyard | Discovered new exit (range 2) 25 | -11/Scrapyard | Entered Materials 25 | -10/Materials | Discovered new exit (range 15) 312 | -10/Materials | Build established: Mutant 359 | -10/Materials | Discovered new exit (range 14) 460 | -10/Materials | Discovered new exit (range 3) 597 | -10/Materials | Identified exit to Subcaves 648 | -10/Materials | Identified exit to Materials 687 | -10/Materials | Learned location of 2 exits from Mines 717 | -10/Materials | Learned location of 2 exits from Subcaves 742 | -10/Materials | Learned location of 1 exit from Recycling 757 | -10/Materials | Learned 2 Storage zone layouts 782 | -10/Materials | Learned 2 Mines zone layouts 1078 | -10/Materials | Central database locked down 1227 | -10/Materials | Entered Mines 1444 | -10/Mines | Excavation squad dispatched 1444 | -10/Mines | A large section of the Mines collapsed 1680 | -10/Mines | Joined a pair of Derelicts in attacking an 0b10 outpost 1960 | -10/Mines | Found the Drone Emporium 1967 | -10/Mines | Learned Materials stockpile data 1971 | -10/Mines | Found Prototype Device 2076 | -10/Mines | Assisted by bots powering up and referring to "LRC-V3" 2431 | -10/Mines | Entered Materials 2431 | -9/Materials | Accompanied by 3 allies 2431 | -9/Materials | Evolved 2 slots: Propulsion x1, Utility x1 2431 | -9/Materials | Self-destructed Last Messages --------------- 02009_ Found Sml. Matter Pod. 02009_ Found Seismic Detector. 02009_ Found 50 Matter. 02010_ Acquired 50 matter. 02013_ Dropped Lgt. Cannon. 02025_ K-01 Serf destroyed. 02028_ Acquired 6 matter. 02030_ Acquired 3 matter. 02076_ Trooper 1a: "Hello LRC-V3. What is your command?" 02076_ Mercenary 1a: "Hello LRC-V3. What is your command?" 02076_ Trooper 1b: "Hello LRC-V3. What is your command?" 02346_ Acquired 14 matter. 02411_ K-01 Serf knocked back. 02414_ Acquired 2 matter. PARAMETERS=PROPULSION+1,UTILITY+1 LOCATION=MATERIALS GOAL=ESCAPE Map ----- +----------------------------------------------------+ | | | | | | | | | | | | | | | | | | | | | | | | | | | ?????????????????????????????????????????? | | ?????????????????????????????????????????? | | ?????????????????????????????????????????? | | ?????????????????????????????????????????? | | ???????????????????????#?????????????????? | | ?????????????????????? #?????????????????? | | ?????????????????????? #?????????????????? | | ????????????????????? #?????????????????? | | ???????????????????? ??????????????????? | | ??????????????????? ???????????????????? | | ???????????????####/##########???????????? | | ???????????????# g ????????? | | ???????????????# @ g ????????? | | ???????????????# ????????? | | ???????????????####+####### ????????? | | ?????????????????????????????????????????? | | ?????????????????????????????????????????? | | ?????????????????????????????????????????? | | ?????????????????????????????????????????? | | ?????????????????????????????????????????? | | ?????????????????????????????????????????? | | ?????????????????????????????????????????? | | ?????????????????????????????????????????? | | ?????????????????????????????????????????? | | ?????????????????????????????????????????? | | ?????????????????????????????????????????? | | ?????????????????????????????????????????? | | ?????????????????????????????????????????? | | ?????????????????????????????????????????? | | ?????????????????????????????????????????? | | ?????????????????????????????????????????? | | ?????????????????????????????????????????? | | ?????????????????????????????????????????? | | ?????????????????????????????????????????? | | ?????????????????????????????????????????? | | ?????????????????????????????????????????? | | ?????????????????????????????????????????? | +----------------------------------------------------+ Best States ------------- Heat Dissipation 25 Energy Generation 12 Energy Capacity 265 Matter Stores 300 Matter Capacity 300 Sight Range 16 Terrain Scan Density 10 Armor Coverage 150 Evasion (%) 45 Recoil Reduction 2 Item Schematics ----------------- None Robot Schematics ------------------ M-13 Machinist | -10/Materials | Hacked Fabricated ------------ Nothing Repaired ---------- Nothing Alien Tech Used ----------------- None Achievements -------------- None Challenges ------------ None Game ------ Seed VoltaicHeavyScythe Manual? 0 Play Time 00:13:51 Cumulative 495.3 hours Start 2025.06.27 @ 01:44:58 End 2025.06.27 @ 02:00:45 Sessions 1 Manual Loads 0 Difficulty Rogue Special Mode None Game No. 262 Rogue 199 Adventurer 63 Explorer 0 Win Type - Total 9 Types 8/0/0/1/0/0/0/0/0/0 Lore% 90 Gallery% 81 Achievement% 67 Wizard Run 0 Options --------- Layout 1 ASCII 0 Keyboard 1 Movement Numpad Keybinds 0 Fullscreen 1 Font 24/Terminus Map View 50x35 Zoom Use 0% Tactical HUD 1 Map Filters NONE Filters NONE Steam 1 RUN: aa3ec2de-2966-4846-ba2b-bddfaa1a7329